fUST/lending_fUST_20240517
["ID","MTS","AMOUNT","RATE_DAILY","PERIOD"]
[327268541,1715952642567,-186.979344,0.0001726,2]
[327268544,1715952642578,-151.0,0.0001726,2]
[327268546,1715952642587,-500.0,0.0001726,2]
[327268549,1715952642596,-151.0,0.0001726,2]
[327268552,1715952642605,-151.0,0.0001726,2]
[327268554,1715952642614,-500.0,0.0001726,2]
[327268556,1715952642624,-254.2,0.00017306,2]
[327268558,1715952642634,-223.74358816,0.0001745,2]
[327268560,1715952642643,-1237.29190451,0.000175,2]
[327268562,1715952642654,-1414.725589,0.000175,2]
[327268564,1715952642663,-1414.725589,0.000175,2]
[327268566,1715952642673,-151.0,0.000175,2]
[327268568,1715952642683,-254.2,0.00017514,2]
[327268572,1715952642692,-503.5,0.00017533,2]
[327268576,1715952642702,-500.0,0.00017534,2]
[327268581,1715952642711,-500.0,0.00017534,2]
[327268587,1715952642721,-500.0,0.00017534,2]
[327268589,1715952642731,-500.0,0.00017534,2]
[327268591,1715952642740,-500.0,0.00017534,2]
[327268593,1715952642749,-500.0,0.00017534,2]
[327268595,1715952642758,-1733.67,0.00017534,2]
[327268596,1715952642767,-1080.41,0.00017534,2]
[327268597,1715952642776,-500.0,0.00017534,2]
[327268598,1715952642785,-500.0,0.00017534,2]
[327268599,1715952642795,-151.0,0.00017534,2]
[327268600,1715952642804,-151.645127,0.00017534,2]
[327268603,1715952642813,-500.0,0.00017534,2]
[327268605,1715952642823,-500.0,0.00017534,2]
[327268607,1715952642833,-195.42977504,0.00017534,2]
[327268609,1715952642842,-500.0,0.00017534,2]
[327268611,1715952642852,-151.0,0.00017534,2]
[327268613,1715952642861,-5021.79,0.00017534,2]
[327268615,1715952642870,-500.0,0.00017534,2]
[327268616,1715952642879,-151.0,0.00017534,2]
[327268618,1715952642888,-151.0,0.00017534,2]
[327268620,1715952642897,-500.0,0.00017534,2]
[327268622,1715952642907,-500.0,0.00017534,2]
[327268625,1715952642916,-151.0,0.00017534,2]
[327268627,1715952642925,-500.0,0.00017534,2]
[327268628,1715952642934,-151.0,0.00017534,2]
[327268631,1715952642943,-151.0,0.00017534,2]
[327268632,1715952642955,-249.616793,0.00017534,2]
[327268634,1715952642964,-1342.19,0.00017534,2]
[327268636,1715952642974,-500.0,0.00017534,2]
[327268638,1715952642983,-259.85,0.00017534,2]
[327268640,1715952642992,-249.616793,0.00017534,2]
[327268642,1715952643000,-577.84,0.00017534,2]
[327268644,1715952643009,-151.0,0.00017534,2]
[327268646,1715952643019,-500.0,0.00017534,2]
[327268648,1715952643028,-4435.79,0.00017534,2]
[327268650,1715952643037,-500.0,0.00017534,2]
[327268652,1715952643047,-10560.62,0.00017534,2]
[327268655,1715952643056,-500.0,0.00017534,2]
[327268656,1715952643066,-1093.66,0.00017534,2]
[327268659,1715952643077,-500.0,0.00017534,2]
[327268661,1715952643086,-625.57,0.00017534,2]
[327268663,1715952643096,-500.0,0.00017534,2]
[327268665,1715952643105,-151.0,0.00017534,2]
[327268666,1715952643114,-500.0,0.00017534,2]
[327268668,1715952643123,-254.2,0.00017722,2]
[327268670,1715952643133,-151.0,0.00017798,2]
[327268673,1715952643142,-151.0,0.00017798,2]
[327268674,1715952643151,-151.0,0.00017798,2]
[327268676,1715952643161,-186.979344,0.00017798,2]
[327268678,1715952643170,-186.979344,0.00017798,2]
[327268680,1715952643180,-151.0,0.00017798,2]
[327268682,1715952643189,-151.0,0.00017798,2]
[327268684,1715952643200,-2000.0,0.00017798,2]
[327268687,1715952643216,-500.0,0.00017807,2]
[327268688,1715952643226,-503.5,0.00017807,2]
[327268690,1715952643235,-500.0,0.00017807,2]
[327268692,1715952643246,-1594.9155289,0.00017808,3]
[327268694,1715952643257,-389.69,0.00017808,2]
[327268696,1715952643267,-500.0,0.00017808,2]
[327268698,1715952643277,-500.0,0.00017808,2]
[327268700,1715952643290,-500.0,0.00017808,2]
[327268702,1715952643299,-500.0,0.00017808,2]
[327268704,1715952643310,-1733.67,0.00017808,2]
[327268706,1715952643319,-151.0,0.00017808,2]
[327268708,1715952643329,-151.0,0.00017808,2]
[327268710,1715952643338,-151.0,0.00017808,2]
[327268712,1715952643348,-151.0,0.00017808,2]
[327268714,1715952643357,-192.936696,0.00017808,2]
[327268716,1715952643368,-192.936696,0.00017808,2]
[327268718,1715952643378,-151.0,0.00017808,2]
[327268720,1715952643387,-368.339174,0.00017808,2]
[327268722,1715952643396,-368.339174,0.00017808,2]
[327268723,1715952643405,-1080.41,0.00017808,2]
[327268724,1715952643414,-500.0,0.00017808,2]
[327268725,1715952643423,-293.72573036,0.00017808,2]
[327268727,1715952643433,-500.0,0.00017808,2]
[327268729,1715952643442,-500.0,0.00017808,2]
[327268731,1715952643451,-500.0,0.00017808,2]
[327268733,1715952643461,-151.0,0.00017808,2]
[327268735,1715952643470,-5021.79,0.00017808,2]
[327268737,1715952643479,-500.0,0.00017808,2]
[327268739,1715952643489,-151.0,0.00017808,2]
[327268740,1715952643498,-500.0,0.00017808,2]
[327268742,1715952643507,-151.0,0.00017808,2]
[327268744,1715952643517,-500.0,0.00017808,2]
[327268746,1715952643526,-151.0,0.00017808,2]
[327268748,1715952643536,-500.0,0.00017808,2]
[327268750,1715952643545,-151.0,0.00017808,2]
[327268752,1715952643555,-151.0,0.00017808,2]
[327268754,1715952643564,-249.616793,0.00017808,2]
[327268756,1715952643574,-1342.19,0.00017808,2]
[327268758,1715952643584,-500.0,0.00017808,2]
[327268760,1715952643593,-249.616793,0.00017808,2]
[327268762,1715952643603,-577.84,0.00017808,2]
[327268764,1715952643613,-151.0,0.00017808,2]
[327268766,1715952643622,-1414.725589,0.00017808,2]
[327268768,1715952643632,-500.0,0.00017808,2]
[327268770,1715952643641,-1414.725589,0.00017808,2]
[327268772,1715952643650,-151.0,0.00017808,2]
[327268773,1715952643659,-4435.79,0.00017808,2]
[327268775,1715952643668,-500.0,0.00017808,2]
[327268777,1715952643677,-10560.62,0.00017808,2]
[327268779,1715952643686,-500.0,0.00017808,2]
[327268780,1715952643696,-1093.66,0.00017808,2]
[327268782,1715952643706,-500.0,0.00017808,2]
[327268784,1715952643715,-625.57,0.00017808,2]
[327268785,1715952643725,-500.0,0.00017808,2]
[327268787,1715952643734,-500.0,0.00017808,2]
[327268789,1715952643744,-10448.86120355,0.00017898,2]
[327268791,1715952643753,-151.0,0.00017898,2]
[327268793,1715952643762,-151.0,0.00017898,2]
[327268795,1715952643771,-254.2,0.0001793,2]
[327268796,1715952643780,-895.80593484,0.00018,2]
[327268798,1715952643790,-189.86799103,0.00018,2]
[327268800,1715952643800,-1363.10519204,0.00018,2]
[327268802,1715952643809,-151.0,0.00018,2]
[327268803,1715952643818,-151.0,0.00018,2]
[327268805,1715952643828,-151.0,0.00018,2]
[327268807,1715952643837,-186.979344,0.00018,2]
[327268809,1715952643846,-186.979344,0.00018,2]
[327268810,1715952643855,-151.0,0.00018,2]
[327268812,1715952643865,-151.0,0.00018,2]
[327268814,1715952643874,-503.5,0.00018081,2]
[327268816,1715952643883,-595.99,0.00018082,2]
[327268818,1715952643892,-500.0,0.00018082,2]
[327268819,1715952643901,-235.92995501,0.00018082,2]
[327268821,1715952643910,-500.0,0.00018082,2]
[327268823,1715952643919,-1733.67,0.00018082,2]
[327268825,1715952643928,-151.0,0.00018082,2]
[327268827,1715952643937,-192.936696,0.00018082,2]
[327268828,1715952643946,-192.936696,0.00018082,2]
[327268830,1715952643955,-151.0,0.00018082,2]
[327268832,1715952643964,-368.339174,0.00018082,2]
[327268834,1715952643973,-368.339174,0.00018082,2]
[327268836,1715952643982,-1080.41,0.00018082,2]
[327268837,1715952643992,-361.93164902,0.00018082,2]
[327268839,1715952644002,-500.0,0.00018082,2]
[327268841,1715952644012,-500.0,0.00018082,2]
[327268843,1715952644021,-500.0,0.00018082,2]
[327268845,1715952644039,-5021.79,0.00018082,2]
[327268847,1715952644048,-500.0,0.00018082,2]
[327268849,1715952644058,-298.03359269,0.00018082,2]
[327268851,1715952644067,-500.0,0.00018082,2]
[327268853,1715952644080,-500.0,0.00018082,2]
[327268854,1715952644089,-1342.19,0.00018082,2]
[327268856,1715952644098,-500.0,0.00018082,2]
[327268858,1715952644106,-577.84,0.00018082,2]
[327268860,1715952644115,-1414.725589,0.00018082,2]
[327268861,1715952644124,-500.0,0.00018082,2]
[327268863,1715952644134,-1414.725589,0.00018082,2]
[327268865,1715952644143,-151.0,0.00018082,2]
[327268867,1715952644152,-4435.79,0.00018082,2]
[327268869,1715952644161,-500.0,0.00018082,2]
[327268871,1715952644170,-4543.33533505,0.00018082,2]
[327268884,1715952644324,-1259.41545977,0.00018082,2]
[327268892,1715952644398,-500.0,0.00016438,2]
[327268894,1715952644407,-252.84226243,0.00016438,2]
[327268896,1715952644418,-247.15773757,0.00016438,2]
[327268898,1715952644427,-500.0,0.00016712,2]
[327268900,1715952644437,-500.0,0.00016712,2]
[327268902,1715952644446,-33.69816243,0.00016986,2]
[327268904,1715952644458,-466.30183757,0.00016986,2]
[327268906,1715952644467,-500.0,0.0001726,2]
[327268907,1715952644476,-500.0,0.0001726,2]
[327268909,1715952644485,-174.99,0.00017534,2]
[327268911,1715952644494,-356.39779835,0.00018082,2]
[327268913,1715952644507,-4401.47140683,0.00018082,2]
[327268915,1715952644516,-500.0,0.00018082,2]
[327268917,1715952644525,-1093.66,0.00018082,2]
[327268919,1715952644535,-500.0,0.00018082,2]
[327268921,1715952644544,-625.57,0.00018082,2]
[327268923,1715952644553,-308.25368693,0.00018082,2]
[327268925,1715952644565,-191.74631307,0.00018082,2]
[327268926,1715952644577,-309.36114458,0.00018082,2]
[327268928,1715952644587,-2633.04320767,0.00018125,2]
[327268930,1715952644596,-254.2,0.00018138,2]
[327268932,1715952644605,-150.0,0.00018183,2]
[327268934,1715952644614,-151.0,0.00018255,2]
[327268936,1715952644623,-151.0,0.00018255,2]
[327268937,1715952644631,-151.0,0.00018255,2]
[327268939,1715952644641,-151.0,0.00018255,2]
[327268941,1715952644650,-151.0,0.00018255,2]
[327268943,1715952644659,-151.0,0.00018255,2]
[327268945,1715952644668,-249.616793,0.00018255,2]
[327268947,1715952644677,-249.616793,0.00018255,2]
[327268948,1715952644686,-151.0,0.00018255,2]
[327268950,1715952644695,-1414.725589,0.00018255,2]
[327268952,1715952644704,-1414.725589,0.00018255,2]
[327268954,1715952644714,-278.696478,0.00018255,2]
[327268956,1715952644723,-151.0,0.00018255,2]
[327268958,1715952644732,-186.979344,0.00018255,2]
[327268960,1715952644741,-186.979344,0.00018255,2]
[327268961,1715952644750,-151.0,0.00018255,2]
[327268963,1715952644759,-151.0,0.00018255,2]
[327268965,1715952644768,-151.0,0.00018255,2]
[327268967,1715952644777,-1225.02888935,0.00018255,2]
[327269063,1715952645775,-11036.96800228,0.00018255,2]
[327269065,1715952645787,-803.50534785,0.00018255,2]
[327269067,1715952645900,-500.0,0.00017534,2]
[327269068,1715952645910,-500.0,0.00017808,2]
[327269069,1715952645919,-500.0,0.00018082,2]
[327269070,1715952645928,-34580.20286279,0.00018255,2]
[327269071,1715952645949,-2865.0,0.00018255,2]
[327269074,1715952646080,-1109.26262741,0.00015039,2]
[327269077,1715952646090,-8898.99677059,0.00018255,2]
[327269080,1715952646101,-746.4,0.00018255,2]
[327269083,1715952646112,-3611.78087521,0.00018255,2]
[327269085,1715952646122,-854.10711203,0.00018255,2]
[327269087,1715952646132,-1307.63770751,0.00018255,2]
[327269089,1715952646142,-254.2,0.00018346,2]
[327269091,1715952646151,-458.55657516,0.00018355,2]
[327269513,1715952781910,2686.92892201,0.00012327,2]
[327269514,1715952812858,1496.16357216,9.999e-05,2]
[327269516,1715952895842,316.09468062,9.999e-05,2]
[327269517,1715952896306,766.81233539,9.999e-05,2]
[327269518,1715952909598,157.34979437,9.999e-05,2]
[327269519,1715952918274,238.72491025,9.999e-05,2]
[327269520,1715952947482,154.73694719,9.999e-05,2]
[327269521,1715952955650,154.73694719,9.999e-05,2]
[327269522,1715953018012,8293.1,0.00023,30]
[327269524,1715953069749,156.43141822,9.999e-05,2]
[327269525,1715953117050,658.06565203,9.999e-05,2]
[327269526,1715953214519,409.070033,0.00014948,2]
[327269527,1715953226494,273.37336231,9.9e-05,2]
[327269528,1715953235925,273.37336231,9.9e-05,2]
[327269529,1715953248410,273.37336231,9.9e-05,2]
[327269530,1715953251478,471.84649975,0.00016438,7]
[327269531,1715953258623,273.37336231,9.9e-05,2]
[327269534,1715953306798,273.37336231,9.9e-05,2]
[327269536,1715953317958,273.37336231,9.9e-05,2]
[327269537,1715953327964,273.37336231,9.9e-05,2]
[327269538,1715953339275,273.37336231,9.9e-05,2]
[327269539,1715953351641,273.37336231,9.9e-05,2]
[327269541,1715953361070,273.37336231,9.9e-05,2]
[327269542,1715953374484,273.37336231,9.9e-05,2]
[327269543,1715953383764,273.37336231,9.9e-05,2]
[327269544,1715953396496,273.37336231,9.9e-05,2]
[327269545,1715953407019,273.37336231,9.9e-05,2]
[327269546,1715953416981,273.37336231,9.9e-05,2]
[327269547,1715953427516,273.37336231,9.9e-05,2]
[327269548,1715953438017,273.37336231,9.9e-05,2]
[327269549,1715953448481,273.37336231,9.9e-05,2]
[327269557,1715953460791,273.37336231,9.9e-05,2]
[327269558,1715953461717,3000.0,0.00014852,2]
[327269562,1715953470282,273.37336231,9.9e-05,2]
[327269563,1715953480991,273.37336231,9.9e-05,2]
[327269564,1715953490689,273.37336231,9.9e-05,2]
[327269565,1715953502612,273.37336231,9.9e-05,2]
[327269566,1715953510844,273.37336231,9.9e-05,2]
[327269567,1715953515793,156.43141822,9.999e-05,2]
[327269568,1715953518034,1657.3623498,0.00014955,2]
[327269569,1715953520685,273.37336231,9.9e-05,2]
[327269570,1715953523907,13696.20304524,9.9e-05,2]
[327269571,1715953529295,273.37336231,9.9e-05,2]
[327269576,1715953540184,273.37336231,9.9e-05,2]
[327269578,1715953549504,273.37336231,9.9e-05,2]
[327269583,1715953560362,273.37336231,9.9e-05,2]
[327269584,1715953566279,415.01,0.00010959,2]
[327269586,1715953571538,273.37336231,9.9e-05,2]
[327269587,1715953577123,157.2,0.00010959,2]
[327269588,1715953580250,273.37336231,9.9e-05,2]
[327269591,1715953584185,261.06534224,9.999e-05,2]
[327269592,1715953587695,786.03,0.00010959,2]
[327269593,1715953591676,273.37336231,9.9e-05,2]
[327269594,1715953600884,273.37336231,9.9e-05,2]
[327269595,1715953610762,273.37336231,9.9e-05,2]
[327269596,1715953621181,273.37336231,9.9e-05,2]
[327269598,1715953631967,273.37336231,9.9e-05,2]
[327269599,1715953640175,-1913.24723481,0.00015079,2]
[327269600,1715953640706,273.37336231,9.9e-05,2]
[327269601,1715953650103,273.37336231,9.9e-05,2]
[327269603,1715953659354,273.37336231,9.9e-05,2]
[327269605,1715953668827,273.37336231,9.9e-05,2]
[327269606,1715953678922,273.37336231,9.9e-05,2]
[327269607,1715953688196,273.37336231,9.9e-05,2]
[327269608,1715953698281,273.37336231,9.9e-05,2]
[327269609,1715953709311,273.37336231,9.9e-05,2]
[327269610,1715953718158,273.37336231,9.9e-05,2]
[327269611,1715953728895,273.37336231,9.9e-05,2]
[327269612,1715953738126,273.37336231,9.9e-05,2]
[327269613,1715953742340,165.78079375,0.00014979,2]
[327269614,1715953747500,273.37336231,9.9e-05,2]
[327269616,1715953759021,273.37336231,9.9e-05,2]
[327269617,1715953768609,273.37336231,9.9e-05,2]
[327269620,1715953778711,273.37336231,9.9e-05,2]
[327269621,1715953788205,273.37336231,9.9e-05,2]
[327269623,1715953798559,273.37336231,9.9e-05,2]
[327269624,1715953798764,19113.08,0.000226,29]
[327269625,1715953809038,273.37336231,9.9e-05,2]
[327269627,1715953817860,273.37336231,9.9e-05,2]
[327269628,1715953827757,273.37336231,9.9e-05,2]
[327270183,1715953837370,273.37336231,9.9e-05,2]
[327270425,1715953839770,-2678.41581431,0.00015018,2]
[327270427,1715953839780,-10362.7916994,0.00015019,2]
[327270429,1715953839791,-250.0,0.00015054,2]
[327270430,1715953839800,-486.9419046,0.0001508,2]
[327270433,1715953839811,-524.19743952,0.00015087,2]
[327270434,1715953839820,-208.30870932,0.00016,2]
[327270437,1715953839831,-8761.23885697,0.00016337,2]
[327270439,1715953839842,-2141.3677905,0.00016338,2]
[327270440,1715953839851,-154.73694719,0.00016434,2]
[327270442,1715953839860,-465.86744219,0.00016434,2]
[327270444,1715953839870,-513.18353158,0.00016434,2]
[327270446,1715953839880,-1042.78198065,0.00016434,2]
[327270448,1715953839889,-260.83785233,0.00016434,2]
[327270450,1715953839899,-227.82417268,0.00016435,2]
[327270452,1715953839909,-159.93639401,0.00016436,2]
[327270454,1715953839919,-156.32882916,0.00016436,2]
[327270456,1715953839928,-1493.53985649,0.00016436,2]
[327270458,1715953839937,-219.9805932,0.00016436,2]
[327270460,1715953839947,-364.02798035,0.00016436,2]
[327270462,1715953839957,-162.80848132,0.00016436,2]
[327270464,1715953839967,-234.9470772,0.00016436,2]
[327270466,1715953839976,-1094.28810056,0.00016436,2]
[327270468,1715953839986,-1580.00719847,0.00016436,2]
[327270471,1715953839996,-1332.42728557,0.00016436,2]
[327270474,1715953840006,-1797.80052194,0.00016436,2]
[327270477,1715953840016,-613.77482028,0.00016436,2]
[327270480,1715953840025,-186.39835571,0.00016436,2]
[327270483,1715953840034,-242.48205614,0.00016436,2]
[327270486,1715953840044,-940.45532708,0.00016436,2]
[327270489,1715953840054,-200.0,0.00016436,2]
[327270492,1715953840063,-531.53142363,0.00016436,2]
[327270495,1715953840073,-163.80018198,0.00016436,2]
[327270498,1715953840082,-154.89941063,0.00016436,2]
[327270501,1715953840091,-317.34046953,0.00016436,2]
[327270504,1715953840101,-190.37138719,0.00016436,2]
[327270507,1715953840111,-286.80360623,0.00016436,2]
[327270510,1715953840120,-260.4581665,0.00016436,2]
[327270513,1715953840131,-157.20304723,0.00016436,2]
[327270516,1715953840140,-293.07712018,0.00016436,2]
[327270519,1715953840150,-155.78522057,0.00016436,2]
[327270522,1715953840160,-229.15802912,0.00016436,2]
[327270525,1715953840170,-698.13723862,0.00016436,2]
[327270528,1715953840180,-157.02244694,0.00016436,2]
[327270531,1715953840190,-242.08726604,0.00016436,2]
[327270534,1715953840200,-154.82968734,0.00016436,2]
[327270537,1715953840211,-2106.56360216,0.00016436,2]
[327270540,1715953840221,-1349.86150143,0.00016437,2]
[327270543,1715953840230,-19455.0804737,0.00016437,2]
[327270548,1715953840240,-4347.79315826,0.00016438,3]
[327270552,1715953840262,-502.29366968,0.00016438,2]
[327270554,1715953840272,-502.50401394,0.00016438,2]
[327270558,1715953840283,-500.0,0.00016438,2]
[327270561,1715953840293,-500.0,0.00016438,2]
[327270564,1715953840302,-610.627207,0.00016438,2]
[327270567,1715953840312,-639.44788956,0.00016438,2]
[327270570,1715953840322,-502.53534878,0.00016438,2]
[327270574,1715953840335,-503.4621342,0.00016438,2]
[327270577,1715953840344,-503.87195361,0.00016438,2]
[327270580,1715953840355,-501.32833032,0.00016438,2]
[327270583,1715953840365,-500.0,0.00016438,2]
[327270586,1715953840375,-503.05303129,0.00016438,2]
[327270589,1715953840384,-500.0,0.00016438,2]
[327270592,1715953840394,-557.80910258,0.00016438,2]
[327270595,1715953840404,-500.0,0.00016438,2]
[327270597,1715953840413,-334.53947105,0.00016438,2]
[327270601,1715953840423,-502.37149094,0.00016438,2]
[327270603,1715953840434,-501.96416163,0.00016438,2]
[327270607,1715953840445,-500.0,0.00016438,2]
[327270610,1715953840455,-502.46373643,0.00016438,2]
[327270613,1715953840465,-502.08257594,0.00016438,2]
[327270616,1715953840475,-502.25228523,0.00016438,2]
[327270618,1715953840485,-500.0,0.00016438,2]
[327270621,1715953840495,-508.33375575,0.00016438,2]
[327270623,1715953840505,-506.74225509,0.00016438,2]
[327270625,1715953840515,-501.45482701,0.00016438,2]
[327270627,1715953840525,-500.0,0.00016438,2]
[327270629,1715953840535,-504.08439829,0.00016438,2]
[327270631,1715953840545,-502.40823284,0.00016438,2]
[327270633,1715953840556,-502.09695674,0.00016438,2]
[327270635,1715953840566,-501.40949651,0.00016438,2]
[327270637,1715953840576,-501.53211938,0.00016438,2]
[327270639,1715953840585,-503.89781825,0.00016438,2]
[327270641,1715953840595,-500.0,0.00016438,2]
[327270643,1715953840605,-500.0,0.00016438,2]
[327270645,1715953840619,-1701.47,0.00016438,2]
[327270647,1715953840628,-500.0,0.00016438,2]
[327270649,1715953840637,-502.31065539,0.00016438,2]
[327270651,1715953840647,-451.82387814,0.00016438,2]
[327270653,1715953840658,-501.91321789,0.00016438,2]
[327270655,1715953840668,-500.0,0.00016438,2]
[327270658,1715953840678,-500.0,0.00016438,2]
[327270659,1715953840687,-643.42819546,0.00016438,2]
[327270662,1715953840699,-500.0,0.00016438,2]
[327270664,1715953840709,-500.0,0.00016438,2]
[327270666,1715953840718,-1000.0,0.00016438,2]
[327270668,1715953840728,-500.0,0.00016438,2]
[327270670,1715953840737,-500.0,0.00016438,2]
[327270672,1715953840747,-500.0,0.00016438,2]
[327270674,1715953840756,-500.0,0.00016438,2]
[327270675,1715953840766,-500.0,0.00016438,2]
[327270678,1715953840775,-511.85063288,0.00016438,2]
[327270680,1715953840786,-500.0,0.00016438,2]
[327270682,1715953840797,-509.81577617,0.00016438,2]
[327270684,1715953840806,-513.25171186,0.00016438,2]
[327270686,1715953840816,-502.3219607,0.00016438,2]
[327270688,1715953840825,-501.11731093,0.00016438,2]
[327270690,1715953840835,-500.0,0.00016438,2]
[327270692,1715953840845,-500.0,0.00016438,2]
[327270694,1715953840854,-505.00649946,0.00016438,2]
[327270696,1715953840863,-503.08371119,0.00016438,2]
[327270698,1715953840873,-500.0,0.00016438,2]
[327270700,1715953840883,-334.11806005,0.00016438,2]
[327270702,1715953840892,-500.90565048,0.00016438,2]
[327270704,1715953840901,-500.30113059,0.00016438,2]
[327270706,1715953840911,-505.02994925,0.00016438,2]
[327270708,1715953840921,-500.0,0.00016438,2]
[327270710,1715953840931,-502.74777379,0.00016438,2]
[327270712,1715953840941,-502.82032201,0.00016438,2]
[327270714,1715953840951,-500.0,0.00016438,2]
[327270716,1715953840961,-500.0,0.00016438,2]
[327270718,1715953840971,-500.0,0.00016438,2]
[327270720,1715953840982,-500.0,0.00016438,2]
[327270722,1715953840992,-500.0,0.00016438,2]
[327270724,1715953841003,-500.0,0.00016438,2]
[327270726,1715953841014,-500.0,0.00016438,2]
[327270728,1715953841025,-500.0,0.00016438,2]
[327270730,1715953841036,-500.0,0.00016438,2]
[327270732,1715953841046,-501.470168,0.00016438,2]
[327270734,1715953841056,-501.46998733,0.00016438,2]
[327270736,1715953841066,-500.0,0.00016438,2]
[327270738,1715953841076,-500.0,0.00016438,2]
[327270740,1715953841088,-504.53150209,0.00016438,2]
[327270742,1715953841100,-506.59165893,0.00016438,2]
[327270744,1715953841109,-501.43511771,0.00016438,2]
[327270746,1715953841119,-619.93017747,0.00016438,2]
[327270748,1715953841129,-500.0,0.00016438,2]
[327270750,1715953841139,-500.0,0.00016438,2]
[327270752,1715953841148,-500.0,0.00016438,2]
[327270754,1715953841158,-501.30610556,0.00016438,2]
[327270756,1715953841168,-500.1184816,0.00016438,2]
[327270758,1715953841177,-568.19789246,0.00016438,2]
[327270760,1715953841187,-500.62431072,0.00016438,2]
[327270762,1715953841196,-500.0,0.00016438,2]
[327270764,1715953841205,-500.0,0.00016438,2]
[327270767,1715953841215,-501.88330692,0.00016438,2]
[327270769,1715953841225,-504.27495535,0.00016438,2]
[327270771,1715953841234,-500.0,0.00016438,2]
[327270773,1715953841243,-521.43,0.00016438,2]
[327270775,1715953841254,-503.19575402,0.00016438,2]
[327270777,1715953841263,-599.00341454,0.00016438,4]
[327270779,1715953841272,-500.57672364,0.00016438,2]
[327270781,1715953841282,-500.0,0.00016438,2]
[327270783,1715953841291,-599.11,0.00016438,2]
[327270785,1715953841300,-500.67597859,0.00016438,2]
[327270787,1715953841310,-471.63683257,0.00016438,2]
[327270789,1715953841319,-500.0,0.00016438,2]
[327270791,1715953841328,-500.0,0.00016438,2]
[327270793,1715953841339,-500.0,0.00016438,2]
[327270795,1715953841348,-500.0,0.00016438,2]
[327270797,1715953841357,-641.20579103,0.00016438,2]
[327270799,1715953841366,-500.0,0.00016438,2]
[327270801,1715953841376,-500.0,0.00016438,2]
[327270803,1715953841385,-500.8068027,0.00016438,2]
[327270805,1715953841395,-500.0,0.00016438,2]
[327270807,1715953841404,-501.03550732,0.00016438,2]
[327270809,1715953841413,-500.0,0.00016438,2]
[327270811,1715953841422,-503.63944654,0.00016438,2]
[327270813,1715953841432,-500.0,0.00016438,2]
[327270815,1715953841441,-160.46693063,0.00016438,2]
[327270848,1715953841748,-343.3370825,0.00016438,2]
[327270850,1715953841757,-500.0,0.00016438,2]
[327270851,1715953841767,-500.0,0.00016438,2]
[327270853,1715953841777,-500.0,0.00016438,2]
[327270855,1715953841787,-580.46350975,0.00016438,2]
[327270857,1715953841796,-500.0,0.00016438,2]
[327270859,1715953841806,-500.0,0.00016438,2]
[327270861,1715953841815,-500.0,0.00016438,2]
[327270863,1715953841824,-500.44713499,0.00016438,2]
[327270865,1715953841835,-506.49840294,0.00016438,2]
[327270867,1715953841844,-500.0,0.00016438,2]
[327270869,1715953841853,-500.0,0.00016438,2]
[327270871,1715953841863,-500.0,0.00016438,2]
[327270873,1715953841872,-500.0,0.00016438,2]
[327270875,1715953841881,-580.86,0.00016438,2]
[327270877,1715953841890,-501.15457218,0.00016438,2]
[327270879,1715953841900,-500.0,0.00016438,2]
[327270881,1715953841909,-500.0,0.00016438,2]
[327270883,1715953841918,-444.05047531,0.00016438,2]
[327270885,1715953841928,-1000.0,0.00016438,2]
[327270887,1715953841937,-501.02,0.00016438,2]
[327270889,1715953841946,-381.39477028,0.00016438,2]
[327270891,1715953841955,-500.0,0.00016438,2]
[327270893,1715953841964,-500.0,0.00016438,2]